bitfinex/quotes_ETHUSD_20220119
["timestamp","ask_amount","ask_price","bid_price","bid_amount"]
[1642610346880,7.4493,3093.1,3092.3,1.35240542]
[1642610346881,2.46580257,3092.8,3092.3,1.35240542]
[1642610347081,2.46580257,3092.8,3091.8,8.8747]
[1642610347082,0.00511581,3092.4,3091.8,8.8747]
[1642610347343,0.00511581,3092.4,3091.6,3.9067]
[1642610347533,2.59964996,3092.3,3091.4,3.1358]
[1642610347731,2.59964996,3092.3,3091.1,3.7933]
[1642610347732,2.46580257,3092.1,3091.1,3.7933]
[1642610347933,2.46580257,3092.1,3091.1,1.61753]
[1642610347934,0.1293,3092.0,3091.1,1.61753]
[1642610348134,1.23298403,3091.5,3091.2,1.53719392]
[1642610348337,1.23298403,3091.5,3091.2,0.00170527]
[1642610348532,1.23298403,3091.5,3091.3,0.00113685]
[1642610348740,1.23298403,3091.5,3091.2,0.00170527]
[1642610348938,0.1293,3091.7,3091.2,0.00170527]
[1642610349143,0.00227369,3091.9,3091.2,0.81046527]
[1642610349341,0.00170527,3091.8,3091.2,0.81046527]
[1642610349539,0.00170527,3091.8,3091.3,0.00113685]
[1642610349740,0.00113685,3091.7,3091.3,0.00113685]
[1642610349940,0.00113685,3091.7,3091.6,1.35549286]
[1642610350144,0.00113685,3091.7,3091.4,1.61732]
[1642610351166,1.55474694,3091.6,3091.5,0.80866]
[1642610351370,1.55474694,3091.6,3091.4,1.61732]
[1642610351668,1.55474694,3091.6,3091.3,0.00113685]
[1642610351669,0.1293,3091.5,3091.3,0.00113685]
[1642610351870,2.75416379,3091.4,3091.3,0.00113685]
[1642610352066,2.88346379,3091.4,3091.1,0.00227369]
[1642610352269,2.75416379,3091.3,3091.1,0.00227369]
[1642610352470,2.75416379,3091.2,3091.1,0.00227369]
[1642610352670,2.75416379,3091.2,3091.1,0.81113369]
[1642610353269,2.75416379,3091.4,3091.1,0.81113369]
[1642610353473,0.1293,3091.5,3091.1,0.81113369]
[1642610353474,2.75416379,3091.3,3091.1,0.81113369]
[1642610353675,0.1293,3091.5,3091.2,0.00170527]
[1642610353876,0.00113685,3091.7,3091.2,0.00170527]
[1642610353877,0.1293,3091.6,3091.2,0.00170527]
[1642610354077,1.76622457,3091.6,3091.2,0.00170527]
[1642610354275,1.76622457,3091.6,3090.7,0.80894]
[1642610354276,0.00239153,3091.1,3090.7,0.80894]
[1642610354476,0.00239153,3091.1,3090.8,0.00227369]
[1642610356330,4.26184749,3090.9,3090.8,0.00227369]
[1642610356531,1.21184749,3090.9,3090.7,0.00284212]
[1642610356733,0.1293,3090.8,3090.7,0.00284212]
[1642610356932,0.1293,3090.8,3090.4,0.00454739]
[1642610357930,1.10539169,3090.7,3090.4,0.00454739]
[1642610358331,0.1293,3090.8,3090.4,0.00454739]
[1642610360482,0.1293,3090.8,3090.4,0.81352739]
[1642610360683,1.21184749,3090.9,3090.4,0.81352739]
[1642610360883,1.21184749,3090.9,3090.5,0.00397896]
[1642610361291,0.1293,3091.0,3090.8,1.34549337]
[1642610361691,0.1293,3091.0,3090.9,0.00170527]
[1642610361890,0.00239153,3091.1,3090.9,0.00170527]
[1642610362531,1.28845737,3091.4,3090.9,0.00170527]
[1642610362721,1.41785737,3091.4,3090.9,0.00170527]
[1642610363120,1.41785737,3091.4,3090.6,1.6178]
[1642610363121,1.41785737,3091.4,3090.7,0.00284212]
[1642610363726,1.18556825,3091.1,3090.7,1.17749392]
[1642610364523,1.18556825,3091.1,3090.7,0.00284212]
[1642610364925,0.1293,3091.0,3090.5,0.00397896]
[1642610365125,0.1293,3091.0,3090.3,0.00511581]
[1642610365725,1.56373233,3090.7,3090.3,0.00511581]
[1642610365925,0.1293,3091.0,3090.4,0.80898]
[1642610366370,0.1293,3091.0,3090.5,0.00397896]
[1642610366972,1.16673712,3090.8,3090.5,0.00397896]
[1642610367370,0.1293,3091.0,3090.5,0.00397896]
[1642610368371,1.4670776,3090.8,3090.5,0.00397896]
[1642610368574,1.4670776,3090.8,3090.3,0.00511581]
[1642610368872,2.75484911,3090.7,3090.3,0.00511581]
[1642610369473,2.75484911,3090.7,3090.1,0.00625266]
[1642610370129,2.75484911,3090.7,3090.2,0.80906]
[1642610370330,2.75484911,3090.6,3090.2,0.80906]
[1642610370532,2.75484911,3090.5,3090.3,1.62287581]
[1642610370729,1.31486825,3091.1,3090.3,1.62287581]
[1642610370730,0.1293,3091.1,3090.3,1.62287581]
[1642610370932,2.75467688,3091.0,3090.4,0.00454739]
[1642610371133,0.00170527,3091.5,3090.6,0.80878]
[1642610371134,2.75467688,3090.9,3090.6,0.80878]
[1642610371330,0.00113685,3091.4,3090.6,0.80878]
[1642610371636,1.63692457,3091.7,3090.7,2.42880212]
[1642610371830,2.75430443,3091.6,3090.7,2.42880212]
[1642610372030,1.63692457,3092.1,3091.0,5.8]
[1642610372233,2.46580257,3092.3,3091.2,0.80847]
[1642610372234,1.63692457,3092.3,3091.2,0.80847]
[1642610372432,0.1293,3093.0,3091.3,0.1293]
[1642610372433,0.00170527,3091.9,3091.3,0.1293]
[1642610372630,1.63692457,3092.5,3091.5,5.8]
[1642610372832,0.00511582,3092.5,3092.4,1.09392524]
[1642610373031,0.00511582,3092.5,3092.4,2.18482524]
[1642610373230,0.00341055,3092.5,3092.4,2.02851]
[1642610373430,0.00341055,3092.5,3092.4,1.2202]
[1642610374274,0.00341055,3092.5,3092.3,1.29001]
[1642610374472,0.00341055,3092.5,3091.7,3.14045137]
[1642610374473,0.00341055,3092.5,3091.7,1.52366137]
[1642610374670,0.00284212,3092.4,3091.6,0.13100527]
[1642610374872,0.00284212,3092.4,3091.7,1.617]
[1642610375072,0.0022737,3092.3,3091.7,1.61813684]
[1642610375473,0.00170527,3092.2,3091.7,1.61813684]
[1642610375671,0.00170527,3092.2,3091.9,1.61704]
[1642610375873,0.00113685,3092.1,3091.9,1.61704]
[1642610376274,1.32425997,3092.3,3091.9,1.61704]
[1642610376275,0.00170527,3092.2,3091.9,1.61704]
[1642610376778,0.00113685,3092.1,3091.9,1.61704]
[1642610377176,1.76622457,3092.0,3091.7,0.00113684]
[1642610377421,1.63692457,3092.0,3091.7,0.00113684]
[1642610377621,2.47693942,3091.8,3091.7,0.00113684]
[1642610378322,2.47693942,3091.8,3091.5,0.1293]
[1642610378323,2.47693942,3091.8,3091.6,0.00170527]
[1642610378527,1.36421728,3091.8,3091.6,0.81039527]
[1642610378927,1.36421728,3091.8,3091.7,0.00113684]
[1642610379126,1.63692457,3092.0,3091.7,0.00113684]
[1642610379525,1.45566508,3092.0,3091.7,0.00113684]
[1642610379727,0.1293,3091.9,3091.7,0.00113684]
[1642610380127,1.63692457,3091.8,3091.7,0.00113684]
[1642610380327,0.13043685,3092.1,3091.7,0.00113684]
[1642610380528,0.00113685,3092.1,3091.7,0.00113684]
[1642610381380,0.00113685,3092.1,3091.8,2.00829812]
[1642610381577,1.63692457,3092.5,3091.9,0.80843]
[1642610381778,1.63692457,3092.5,3092.0,1.58786001]
[1642610381981,1.63692457,3092.6,3092.0,1.58786001]
[1642610382177,3.28264497,3093.1,3092.0,1.58786001]
[1642610382178,1.63692457,3092.7,3092.1,0.13100527]
[1642610382378,1.63692457,3092.8,3092.1,0.13100527]
[1642610382579,1.63919827,3092.8,3092.2,0.00113685]
[1642610382778,1.63919827,3092.8,3092.3,0.8083]
[1642610382779,0.0022737,3092.8,3092.3,0.8083]
[1642610382982,0.0022737,3092.8,3092.5,1.30307263]
[1642610383178,0.0022737,3092.8,3092.5,2.00687263]
[1642610384085,1.63692457,3093.1,3092.6,5.33753]
[1642610384280,1.63692457,3093.3,3092.7,0.80817]
[1642610384485,0.00113684,3093.0,3092.8,0.1293]
[1642610384685,1.63692457,3093.6,3093.0,0.80809]
[1642610384936,1.63692457,3093.7,3093.1,0.1293]
[1642610385137,1.63692457,3093.8,3093.4,2.71668859]
[1642610385337,1.63692457,3093.8,3093.4,4.36239859]
[1642610385338,1.63692457,3093.7,3093.4,4.36239859]
[1642610385739,0.00454739,3093.8,3093.2,2.42423]
[1642610385740,2.49516949,3093.3,3093.2,2.42423]
[1642610386141,2.49687476,3093.3,3093.1,0.1293]
[1642610386337,2.49687476,3093.3,3093.1,0.93753]
[1642610386538,0.00113685,3093.2,3093.1,0.93753]
[1642610386737,3.05113685,3093.2,3093.1,0.1293]
[1642610387641,0.00113685,3093.2,3093.1,0.1293]
[1642610387842,0.00113685,3093.2,3092.6,0.00113685]
[1642610387843,0.00113685,3093.2,3092.7,0.1293]
[1642610388041,0.00113685,3093.2,3092.7,0.4293]
[1642610388241,0.00113685,3093.2,3092.8,0.00113685]
[1642610388443,6.34e-06,3093.3,3093.0,5.8]
[1642610388684,1.63692457,3094.5,3093.2,2.4239]
[1642610388882,2.75197928,3094.5,3094.0,0.80799]
[1642610389085,1.13705792,3094.5,3094.0,1.77979]
[1642610389280,1.19775518,3094.6,3094.0,1.77979]
[1642610389481,2.46580257,3094.8,3094.0,1.77979]
[1642610389685,0.0073895,3094.5,3094.0,1.77979]
[1642610390086,0.00682108,3094.4,3094.0,2.58769]
[1642610390285,0.1292,3095.0,3094.2,0.80783]
[1642610390482,2.49178324,3095.1,3094.5,2.49617615]
[1642610390483,0.02598067,3095.1,3094.5,2.49617615]
[1642610390882,2.46580257,3095.3,3094.5,2.49617615]
[1642610391083,0.00227369,3095.0,3094.5,2.49617615]
[1642610391286,0.00341054,3095.2,3094.5,2.49617615]
[1642610391584,0.00284212,3095.1,3094.5,2.49617615]
[1642610391882,0.00284212,3095.1,3094.4,2.64555]
[1642610392083,0.00284212,3095.1,3094.5,1.61556]
[1642610392525,2.75471418,3095.1,3094.5,1.61556]
[1642610392726,1.49170664,3094.7,3094.5,1.61556]
[1642610392927,4.21744028,3094.6,3094.5,1.61556]
[1642610393529,4.34664028,3094.6,3094.4,0.2222]
[1642610393728,2.88107206,3094.5,3094.1,0.00170527]
[1642610393930,2.75187206,3094.4,3094.1,0.80972527]
[1642610394229,2.46580257,3095.0,3094.1,0.80972527]
[1642610394230,0.1292,3094.9,3094.2,0.0022737]
[1642610394428,0.1292,3095.2,3094.2,1.0817737]
[1642610394628,0.00113684,3094.8,3094.2,1.0817737]
[1642610394831,0.00113684,3094.8,3094.4,1.61572]
[1642610395029,0.1292,3095.3,3094.4,1.61572]
[1642610395030,1.39467156,3094.7,3094.4,1.61572]
[1642610395828,0.00341054,3095.2,3094.4,1.61572]
[1642610396066,0.1292,3095.1,3094.4,1.61572]
[1642610396267,0.13204212,3095.1,3094.4,1.61572]
[1642610396466,0.00284212,3095.1,3094.4,1.61572]
[1642610396873,0.00284212,3095.1,3094.3,0.00170527]
[1642610396874,0.16132,3095.0,3094.3,0.00170527]
[1642610397070,0.1292,3094.9,3094.3,0.00170527]
[1642610397271,0.00170527,3094.9,3094.2,0.0022737]
[1642610397473,0.00170527,3094.9,3093.3,11.51067663]
[1642610397474,0.00113684,3094.8,3094.1,0.00284212]
[1642610397670,0.00113684,3094.8,3094.0,0.1292]
[1642610397872,0.00284212,3095.1,3094.0,0.13261054]
[1642610398071,0.00284212,3095.1,3094.1,0.00284212]
[1642610398072,0.1292,3095.0,3094.1,0.00284212]
[1642610398270,0.00284212,3095.1,3094.4,0.80782]
[1642610398472,2.60400254,3095.5,3094.5,0.1292]
[1642610398473,0.00170527,3094.9,3094.5,0.1292]
[1642610398874,1.75364955,3095.4,3094.5,0.1292]
[1642610398875,1.23376205,3094.8,3094.5,0.1292]
[1642610399073,1.43293941,3094.6,3094.4,1.03352]
[1642610399275,1.43293941,3094.6,3093.3,7.08889]
[1642610399276,8.60073293,3094.5,3092.8,0.1292]
[1642610399484,0.01213587,3093.5,3092.8,0.1292]
[1642610399675,0.01213587,3093.5,3092.9,0.00682108]
[1642610399676,0.18111981,3093.4,3092.9,0.00682108]
[1642610400134,0.1293,3093.4,3092.9,0.00682108]
[1642610400334,1.4364008,3093.3,3092.9,0.00682108]
[1642610400532,0.1293,3093.2,3092.9,0.00682108]
[1642610400935,0.1293,3093.2,3092.8,0.1292]
[1642610400936,0.29781343,3092.7,3091.6,0.8086]
[1642610401136,0.29781343,3092.7,3091.2,3.7161]
[1642610401137,0.17541869,3092.6,3091.2,3.7161]
[1642610401334,0.17541869,3092.6,3091.1,1.61731]
[1642610401335,0.1293,3092.6,3091.7,0.00682108]
[1642610401535,0.8087131,3092.4,3091.7,0.00682108]
[1642610401734,0.8087131,3092.4,3091.2,2.75348602]
[1642610401735,1.38639376,3092.1,3091.2,2.75348602]
[1642610401934,1.38639376,3092.1,3091.2,1.24302541]
[1642610402133,1.38639376,3092.1,3091.3,0.00909478]
[1642610402534,0.1293,3092.0,3091.3,0.00909478]
[1642610402739,0.1293,3092.0,3091.2,0.0096632]
[1642610402937,0.1293,3092.0,3090.3,1.2114]
[1642610402938,2.787896,3092.0,3090.9,0.01136847]
[1642610403236,2.787896,3092.0,3090.4,0.1293]
[1642610403237,1.41010599,3091.2,3090.7,1.53422871]
[1642610403436,1.41010599,3091.2,3090.7,2.80492698]
[1642610403683,1.41010599,3091.2,3090.8,0.01193689]
[1642610404081,1.41010599,3091.2,3090.7,0.01250532]
[1642610404281,1.41010599,3091.2,3090.2,0.01534743]
[1642610404483,1.41010599,3091.2,3090.3,0.1293]
[1642610404681,1.41010599,3091.2,3089.8,0.01762113]
[1642610404682,1.41010599,3091.2,3090.4,1.3564525]
[1642610404887,0.1293,3091.3,3090.4,1.37066309]
[1642610405085,0.27639994,3091.6,3090.5,0.14294216]
[1642610405286,0.1293,3092.1,3090.6,1.61743]
[1642610405483,0.1293,3092.1,3090.7,0.1293]
[1642610405683,2.66389096,3092.3,3090.7,0.14180532]
[1642610405885,0.9380689,3092.2,3091.9,1.27179155]
[1642610406084,0.1293,3092.2,3091.9,1.27179155]
[1642610406285,0.27639994,3092.5,3091.9,1.27179155]
[1642610406286,0.27639994,3092.5,3092.0,0.00511581]
[1642610407628,0.27639994,3092.5,3092.4,1.40472146]
[1642610408030,0.27639994,3092.5,3092.4,1.40756358]
[1642610408329,0.27639994,3092.5,3092.4,0.00284212]
[1642610408632,9.1660095,3092.5,3092.4,3.2]
[1642610409034,10.1660095,3092.5,3092.4,3.20284212]
[1642610409331,10.1660095,3092.5,3092.4,2.85464212]
[1642610409332,11.72279164,3092.5,3092.4,2.85464212]
[1642610409532,12.69286164,3092.5,3092.4,2.85464212]
[1642610410132,0.87565788,3092.4,3090.8,0.1293]
[1642610410336,0.87565788,3092.4,3089.4,7.32]
[1642610410337,0.01241982,3091.8,3090.6,0.1293]
[1642610410536,0.01241982,3091.8,3090.9,0.00852635]
[1642610410537,0.1293,3091.7,3090.9,0.00852635]
[1642610410733,3.74447901,3091.7,3090.9,0.00852635]
[1642610410932,3.74447901,3091.7,3090.3,0.01193689]
[1642610411172,1.4589622,3091.0,3090.5,1.49681977]
[1642610411379,2.90485374,3090.9,3090.3,0.01193689]
[1642610411572,2.90485374,3090.9,3090.2,0.1293]
[1642610411573,6.66132,3090.8,3090.2,0.1293]
[1642610411772,3.4124898,3090.7,3090.3,0.00170527]
[1642610411974,5.4,3090.5,3089.1,0.1294]
[1642610412174,3.74256194,3090.4,3089.1,0.1294]
[1642610412372,3.74256194,3090.4,3089.2,1.20426619]
[1642610412373,0.08768411,3089.6,3089.2,1.20426619]
[1642610412571,0.07742965,3090.0,3089.2,1.20426619]
[1642610412773,0.07540068,3089.8,3089.3,0.00568424]
[1642610412977,0.00170527,3090.6,3089.3,0.00568424]
[1642610412978,0.05207417,3090.2,3089.3,0.00568424]
[1642610413175,0.04832419,3090.4,3089.3,0.13498424]
[1642610413378,0.13043685,3090.5,3090.3,1.28801383]
[1642610413575,0.00113685,3090.5,3090.4,1.21310228]
[1642610415220,0.00113685,3090.5,3089.5,1.7474]
[1642610415221,0.16245685,3090.5,3089.5,1.7474]
[1642610415420,0.1293,3090.4,3089.4,1.62332581]
[1642610415624,0.1293,3090.4,3089.6,0.00397897]
[1642610415920,0.1293,3090.4,3089.4,1.61821]
[1642610415921,0.1293,3090.4,3089.5,0.00454739]
[1642610416120,0.1293,3090.4,3089.8,1.48049927]
[1642610416320,0.1293,3090.4,3090.0,1.41597157]
[1642610416527,0.00113685,3090.5,3090.0,1.41597157]
[1642610416721,0.00113685,3090.5,3090.1,0.00113685]
[1642610417327,0.00113685,3090.5,3090.4,1.41409735]
[1642610417627,0.00113685,3090.5,3090.1,0.00113685]
[1642610417826,0.1293,3090.4,3090.1,0.00113685]
[1642610418584,0.00113685,3090.5,3089.3,0.00568424]
[1642610418780,0.81033335,3090.5,3089.3,0.00568424]
[1642610418982,4.28331971,3089.7,3089.3,0.00568424]
[1642610419380,3.0237845,3089.6,3089.3,0.00568424]
[1642610419584,0.1293,3089.6,3088.8,0.00852635]
[1642610419781,1.24518108,3089.5,3088.6,1.52112027]
[1642610419981,1.53922466,3089.2,3088.6,2.89839701]
[1642610420181,0.1293,3089.6,3088.4,0.1293]
[1642610420182,3.53340477,3089.4,3088.7,0.00909478]
[1642610420386,1.0,3089.4,3088.7,0.00909478]
[1642610420583,1.0,3089.5,3088.5,0.01023162]
[1642610420891,0.1293,3089.4,3088.5,0.01023162]
[1642610421283,0.1293,3089.6,3089.4,1.30124372]
[1642610421482,0.1295,3089.9,3089.5,1.37935061]
[1642610421686,0.1293,3090.2,3089.5,1.383898]
[1642610421881,0.1293,3090.4,3089.6,0.00397897]
[1642610422328,0.00113685,3090.5,3089.6,0.71117897]
[1642610422724,0.00113685,3090.5,3089.7,0.00341054]
[1642610423023,0.00113685,3090.5,3090.3,1.17155231]
[1642610424430,0.00113685,3090.5,3089.7,0.00341054]
[1642610424640,0.1293,3090.4,3089.7,0.00341054]
[1642610424831,0.1293,3090.4,3090.1,1.47030979]
[1642610425034,1.0,3090.4,3089.1,0.00682108]
[1642610425233,1.0,3090.4,3089.2,0.1293]
[1642610425633,1.0,3090.4,3090.2,1.39257816]
[1642610426110,1.0,3090.4,3090.2,2.53047816]
[1642610426905,0.00113685,3090.5,3090.2,2.53047816]
[1642610426906,1.0,3090.3,3090.2,2.53047816]
[1642610427105,1.0,3090.3,3090.2,3.68903867]
[1642610427311,1.0,3090.3,3090.2,7.03903867]
[1642610428111,1.0,3090.3,3090.2,7.16833867]
[1642610428410,1.0,3090.3,3090.2,2.53047816]
[1642610428617,1.0,3090.3,3089.4,0.1293]
[1642610428810,0.1293,3090.2,3089.0,0.1293]
[1642610429011,0.1293,3090.2,3089.5,0.00454739]
[1642610429210,0.1293,3090.2,3089.1,0.00682108]
[1642610429410,0.1293,3090.2,3089.2,1.74749]
[1642610429610,0.1293,3090.2,3089.2,1.61819]
[1642610429826,0.1293,3090.2,3089.8,1.41651971]
[1642610430222,0.1293,3090.4,3089.9,0.00227369]
[1642610431623,0.00113685,3090.5,3089.9,0.00227369]
[1642610432024,1.0,3090.0,3089.9,0.00227369]
[1642610432223,1.0,3090.0,3089.7,0.00341054]
[1642610432627,0.1293,3089.9,3089.7,0.00341054]
[1642610432926,0.1293,3089.9,3089.4,0.00511581]
[1642610433123,1.20830489,3089.8,3089.4,0.00511581]
[1642610433574,0.1293,3089.9,3089.4,0.00511581]
[1642610433980,1.0,3089.8,3089.4,0.00511581]
[1642610434977,1.0,3089.5,3089.4,0.00511581]
[1642610436083,3.9793,3089.5,3089.4,0.00511581]
[1642610436584,7.87882643,3089.5,3088.6,0.0096632]
[1642610436783,1.29062,3089.4,3088.6,0.0096632]
[1642610436982,1.29062,3089.4,3088.4,0.01080005]
[1642610436983,1.11561876,3088.7,3088.4,0.01080005]
[1642610437183,1.61851486,3088.6,3088.1,0.01250532]
[1642610437428,1.61851486,3088.6,3087.9,0.01364216]
[1642610437630,2.61851486,3088.6,3087.9,0.01364216]
[1642610438029,1.0,3088.2,3087.9,0.01364216]
[1642610438931,1.0,3088.0,3087.9,0.01364216]
[1642610439136,1.0,3088.0,3087.9,3.61364216]
[1642610439731,1.0,3088.0,3087.9,4.42322216]
[1642610440132,1.0,3088.0,3087.9,4.55272216]
[1642610440531,1.0,3088.0,3087.9,0.95272216]
[1642610440733,1.0,3088.0,3087.9,0.14314216]
[1642610441181,1.0,3088.0,3087.9,3.74314216]
[1642610443080,1.0,3088.0,3087.9,5.94314216]
[1642610444490,1.0,3088.0,3087.9,0.14314216]
[1642610444688,1.0,3088.0,3087.9,0.01364216]
[1642610446647,0.1295,3088.3,3087.9,0.01364216]
[1642610446851,0.1295,3088.5,3087.9,1.17058416]
[1642610447348,0.1295,3088.7,3088.0,0.01307374]
[1642610447748,0.1295,3088.9,3088.0,0.01307374]
[1642610447949,0.27639994,3089.2,3088.0,0.01307374]
[1642610447950,0.8095732,3089.0,3088.6,1.37823999]
[1642610448150,0.1295,3089.1,3088.6,1.37823999]
[1642610448350,0.1295,3089.1,3088.7,0.00909478]
[1642610448980,0.9390168,3089.1,3088.7,0.00909478]
[1642610449881,0.1295,3089.1,3088.7,0.00909478]
[1642610450083,0.8094448,3089.4,3088.7,0.00909478]
[1642610450283,0.1293,3089.3,3088.7,0.00909478]
[1642610450481,0.8094448,3089.4,3088.7,0.00909478]
[1642610450881,2.23391647,3089.4,3088.8,1.17040099]
[1642610451284,0.8094448,3089.4,3088.9,0.00795793]
[1642610451683,1.1094448,3089.4,3088.9,0.00795793]
[1642610451886,2.88536749,3089.3,3088.9,0.00795793]
[1642610452087,2.88536749,3089.3,3088.2,0.1293]
[1642610452088,1.0,3089.2,3088.3,0.01136847]
[1642610452322,0.8095416,3089.0,3088.3,0.01136847]
[1642610452521,0.1295,3088.9,3088.3,0.82086847]
[1642610452722,0.1295,3088.9,3088.4,1.28605418]
[1642610452921,0.1295,3088.9,3088.4,1.29685423]
[1642610453120,0.1295,3088.9,3088.5,0.01023162]
[1642610454125,0.1295,3088.9,3088.4,0.01080005]
[1642610454730,0.1295,3089.3,3088.5,1.20972742]
[1642610455126,0.1295,3089.3,3088.6,0.0096632]
[1642610455127,2.756007,3089.2,3088.6,0.0096632]
[1642610455327,2.885307,3089.2,3088.6,0.0096632]
[1642610455528,3.756007,3089.1,3088.6,0.0096632]
[1642610455730,1.36670985,3089.0,3088.6,0.0096632]
[1642610455935,4.15,3088.7,3088.6,0.0096632]
[1642610456173,4.15,3088.7,3088.2,0.01193689]
[1642610456174,5.2795,3088.7,3088.2,0.01193689]
[1642610456375,3.2295,3088.6,3088.5,3.2]
[1642610456573,4.2295,3088.6,3088.5,3.2]
[1642610456774,5.61008911,3088.6,3088.5,3.21023162]
[1642610456974,6.45542293,3088.6,3088.5,3.21023162]
[1642610457977,0.1295,3088.6,3088.5,3.21023162]
[1642610458177,1.0,3088.6,3088.5,3.21023162]
[1642610458779,0.1295,3089.2,3088.5,3.21023162]
[1642610458978,5.6293,3090.1,3088.5,3.21023162]
[1642610458979,0.1293,3089.5,3088.6,1.39906401]
[1642610459279,5.28204799,3090.1,3088.7,0.00909478]
[1642610459280,0.1293,3089.9,3088.7,0.00909478]
[1642610459481,0.1293,3090.0,3088.8,0.1293]
[1642610459677,2.75559942,3089.9,3088.8,0.1293]
[1642610459933,2.75559942,3089.9,3089.8,1.12570155]
[1642610460327,2.75559942,3089.9,3089.8,0.00284212]
[1642610460529,6.45559942,3089.9,3089.8,0.00284212]
[1642610460730,6.45559942,3089.9,3089.7,0.00341054]
[1642610460731,3.99062,3089.9,3089.7,0.00341054]
[1642610460929,3.99062,3089.9,3089.3,0.00568424]
[1642610460930,8.68530393,3089.8,3089.3,0.00568424]
[1642610461130,2.75600393,3089.7,3088.8,0.00852635]
[1642610461332,2.75600393,3089.7,3088.8,0.8094]
[1642610461333,0.1293,3089.6,3088.8,0.8094]
[1642610461629,0.1293,3089.6,3088.9,0.00795793]
[1642610461630,2.75600393,3089.5,3088.9,0.00795793]
[1642610461829,0.1293,3089.4,3088.9,0.00795793]
[1642610462029,2.75600393,3089.3,3088.9,0.00795793]
[1642610462229,0.1293,3089.2,3088.9,0.00795793]
[1642610462434,0.1293,3089.2,3088.8,0.8094]
[1642610462632,0.1293,3089.8,3088.8,0.8094]
[1642610462829,1.0,3090.0,3088.6,0.0096632]
[1642610462830,2.75581276,3089.7,3088.9,1.62650793]
[1642610463030,0.1293,3089.6,3088.9,1.62650793]
[1642610463229,0.1293,3089.6,3089.3,1.35713954]
[1642610463430,0.1293,3089.8,3089.4,1.50127529]
[1642610463683,0.1293,3090.3,3089.4,5.18891188]
[1642610463883,0.13819997,3090.5,3089.5,0.00454739]
[1642610463884,0.29062,3090.4,3089.5,0.00454739]
[1642610464081,2.75546252,3090.3,3089.5,0.00454739]
[1642610464281,0.1293,3090.2,3089.5,0.00454739]
[1642610464483,2.75546252,3090.1,3089.7,0.80914]
[1642610464683,2.75546252,3090.1,3089.4,1.50127529]
[1642610464684,2.75546252,3090.1,3089.6,0.00397897]
[1642610464881,2.75546252,3090.1,3089.4,1.50127529]
[1642610464882,0.1293,3090.0,3089.8,0.00284212]
[1642610465086,2.75546252,3089.9,3089.5,0.00454739]
[1642610465584,2.75546252,3089.8,3089.5,0.00454739]
[1642610465785,0.1293,3090.2,3089.5,0.81374739]
[1642610465989,2.75555625,3090.1,3089.5,0.81374739]
[1642610466185,0.1293,3090.4,3089.6,0.00397897]
[1642610466387,0.13819997,3091.0,3089.6,1.75148897]
[1642610466388,0.1293,3090.7,3089.6,1.75148897]
[1642610466587,0.1293,3091.0,3089.7,3.92303468]
[1642610466785,7.12512,3091.7,3089.7,3.92303468]
[1642610466786,0.00227369,3090.7,3089.8,0.80896]
[1642610466986,0.00227369,3090.7,3089.9,6.39758377]
[1642610467187,0.00170527,3090.6,3089.9,7.51205746]
[1642610467422,0.00170527,3090.6,3090.0,0.81058527]
[1642610467627,0.00113685,3090.5,3090.1,1.10493509]
[1642610467825,0.00113685,3090.5,3090.1,1.91488194]
[1642610468023,0.1293,3091.2,3090.1,1.91488194]
[1642610468024,0.1293,3091.2,3090.2,0.3]
[1642610468223,0.00568423,3091.3,3090.3,3.0767261]
[1642610468424,0.00454739,3091.1,3090.3,3.0767261]
[1642610468628,0.00511581,3091.2,3090.3,3.0767261]
[1642610468827,0.1293,3091.9,3090.4,0.1293]
[1642610468828,0.00397896,3091.0,3090.4,0.1293]
[1642610469029,0.1293,3091.9,3090.5,2.01590391]
[1642610469030,0.00454739,3091.1,3090.5,2.01590391]
[1642610469231,0.0120204,3092.0,3091.0,5.64671844]
[1642610469430,0.1293,3092.4,3091.2,0.80851]
[1642610469431,2.75415121,3091.9,3091.2,0.80851]
[1642610469630,0.0073895,3091.6,3091.3,0.1293]
[1642610469829,0.0073895,3091.6,3091.2,0.1293]
[1642610470032,2.76128236,3091.5,3090.9,0.1293]
[1642610470233,1.26422479,3091.1,3090.6,0.1293]
[1642610470431,3.8935,3092.1,3090.6,0.1293]
[1642610470432,0.00625266,3091.4,3090.6,0.1293]
[1642610470631,0.00397896,3091.0,3090.7,0.80887]
[1642610470830,2.75468564,3091.3,3090.7,0.80887]
[1642610470831,0.00568423,3091.3,3090.7,0.80887]
[1642610471108,0.00341054,3090.9,3090.4,0.1293]
[1642610471300,1.37810958,3091.1,3090.1,0.00113685]
[1642610471301,2.88394205,3091.0,3090.1,0.00113685]
[1642610471501,4.10284212,3090.8,3090.7,3.2]
[1642610471698,9.73827196,3090.8,3090.7,0.0001]
[1642610471898,7.85748417,3090.8,3090.7,0.0001]
[1642610472499,4.21880417,3090.8,3090.7,0.0001]
[1642610472699,3.75748417,3090.8,3090.7,0.0001]
[1642610472901,2.75748417,3090.8,3090.7,0.0001]
[1642610473100,0.00284212,3090.8,3090.7,0.0001]
[1642610473906,1.00284212,3090.8,3090.7,0.0001]
[1642610474105,3.75748417,3090.8,3090.7,0.0001]
[1642610474925,1.00284212,3090.8,3090.7,0.0001]
[1642610475127,3.75776795,3090.8,3090.7,0.0001]
[1642610475325,4.75776795,3090.8,3090.7,0.0001]
[1642610475531,8.17812825,3090.8,3090.7,0.0001]
[1642610475734,8.17812825,3090.8,3090.1,0.00113685]
[1642610475735,0.04640275,3090.5,3090.1,0.00113685]
[1642610476032,0.0007,3090.6,3088.6,7.8544]
[1642610476033,3.72551493,3090.4,3088.9,0.00795793]
[1642610476232,7.05226183,3090.3,3089.0,1.14012841]
[1642610476432,1.51380567,3089.4,3088.8,1.52740625]
[1642610476633,1.1294,3090.2,3089.1,0.00682108]
[1642610476833,5.98740057,3090.1,3088.9,0.00795793]
[1642610477036,5.98740057,3090.1,3088.8,1.47683783]
[1642610477037,1.0,3089.0,3088.8,1.47683783]
[1642610477633,1.0,3089.0,3088.8,2.28615783]
[1642610478039,1.0,3088.9,3088.8,5.48615783]
[1642610478235,1.1293,3089.8,3088.8,5.48615783]
[1642610478434,0.00454739,3089.7,3088.8,5.48615783]
[1642610478683,1.41053946,3089.7,3088.8,5.48615783]
[1642610478882,0.00397896,3089.6,3088.8,5.48615783]
[1642610479083,1.0,3088.9,3088.8,5.48615783]
[1642610479483,0.00341054,3089.5,3088.8,5.48615783]
[1642610479883,0.00284212,3089.4,3088.8,5.48615783]
[1642610480284,0.00227369,3089.3,3088.8,5.48615783]